bitfinex/quotes_BTCUSD_20250512
["timestamp","ask_amount","ask_price","bid_price","bid_amount"]
[1747054935999,0.23292001,103950.0,103940.0,0.001]
[1747054936181,0.23292001,103950.0,103940.0,0.34]
[1747054936378,0.24253974,103950.0,103940.0,0.34962093]
[1747054936597,0.24253974,103950.0,103940.0,0.34]
[1747054936938,0.25215974,103950.0,103940.0,0.55166028]
[1747054937156,0.25215974,103950.0,103940.0,0.55166038]
[1747054937350,0.25215974,103950.0,103940.0,0.54203963]
[1747054937765,0.25215974,103950.0,103940.0,0.34962093]
[1747054937971,0.2435601,103940.0,103930.0,0.57092684]
[1747054938188,0.25318029,103940.0,103930.0,0.5903113]
[1747054938599,0.26280122,103940.0,103930.0,0.58068981]
[1747054938791,0.25318029,103940.0,103930.0,0.58068981]
[1747054939572,0.25318029,103940.0,103930.0,0.57106823]
[1747054939782,0.25318029,103940.0,103930.0,0.59993297]
[1747054940208,0.25318029,103940.0,103930.0,0.99993297]
[1747054940644,0.02532028,103940.0,103930.0,1.00955371]
[1747054940862,0.22735945,103940.0,103930.0,1.00955371]
[1747054941304,0.2369801,103940.0,103930.0,1.0009325]
[1747054941518,0.2369801,103940.0,103930.0,0.98168962]
[1747054941738,0.2369801,103940.0,103930.0,0.99131111]
[1747054941937,0.22735945,103940.0,103930.0,1.00093241]
[1747054942092,0.21861992,103950.0,103940.0,0.21166028]
[1747054942315,0.22530019,103950.0,103940.0,0.23089529]
[1747054942518,0.23491955,103950.0,103940.0,0.24051576]
[1747054942717,0.24453909,103950.0,103940.0,0.21165408]
[1747054942902,0.25415872,103950.0,103940.0,0.22127473]
[1747054943101,0.26377854,103950.0,103940.0,0.56127473]
[1747054943357,0.23755872,103950.0,103940.0,0.56127473]
[1747054943595,0.24055872,103950.0,103940.0,0.56127473]
[1747054943779,0.25017845,103950.0,103940.0,0.96127473]
[1747054944019,0.25615872,103950.0,103940.0,0.9708952]
[1747054944226,0.003,103950.0,103940.0,1.11073548]
[1747054944400,0.003,103950.0,103940.0,1.22449548]
[1747054944766,0.003,103950.0,103940.0,1.20819548]
[1747054944983,0.20501955,103950.0,103940.0,1.1985752]
[1747054945192,0.25575891,103950.0,103940.0,1.20819557]
[1747054945597,0.25575882,103950.0,103940.0,1.1985751]
[1747054945799,0.25575882,103950.0,103940.0,1.20819538]
[1747054946026,0.25575882,103950.0,103940.0,1.1985751]
[1747054946440,0.26537882,103950.0,103940.0,1.18895483]
[1747054946645,0.26537873,103950.0,103940.0,1.19857548]
[1747054946856,0.26537873,103950.0,103940.0,1.22744348]
[1747054947075,0.26537873,103950.0,103940.0,1.23706432]
[1747054947290,0.25575882,103950.0,103940.0,1.24668442]
[1747054947496,0.26537882,103950.0,103940.0,1.22744339]
[1747054947706,0.26537882,103950.0,103940.0,1.10390274]
[1747054947909,0.26537882,103950.0,103940.0,1.07503474]
[1747054948140,0.26537882,103950.0,103940.0,1.05579315]
[1747054948342,0.26537882,103950.0,103940.0,0.86290773]
[1747054948743,0.26537882,103950.0,103940.0,1.05532643]
[1747054948899,0.26537882,103950.0,103940.0,1.06494727]
[1747054949118,0.26537882,103950.0,103940.0,1.07456802]
[1747054949992,0.25575882,103950.0,103940.0,1.07456792]
[1747054950153,0.26537882,103950.0,103940.0,1.07456802]
[1747054950708,0.26537873,103950.0,103940.0,1.08418867]
[1747054951131,0.26537864,103950.0,103940.0,1.06494727]
[1747054951571,0.27499864,103950.0,103940.0,1.07456802]
[1747054952215,0.27499864,103950.0,103940.0,1.06494727]
[1747054952429,0.25575974,103950.0,103940.0,0.86290773]
[1747054952866,0.24614001,103950.0,103940.0,0.74914773]
[1747054953079,0.24614001,103950.0,103930.0,0.49195812]
[1747054953080,0.23453945,103940.0,103930.0,0.49195812]
[1747054953289,0.66586868,103940.0,103930.0,0.00014139]
[1747054953751,0.3449346,103940.0,103930.0,0.00014139]
[1747054955448,0.3459346,103940.0,103930.0,0.00014139]
[1747054955715,0.33139375,103940.0,103930.0,0.00014139]
[1747054966939,1.00410267,103940.0,103930.0,0.00014139]
[1747054967378,0.7597346,103940.0,103930.0,0.00014139]
[1747054968996,0.22335573,103920.0,103900.0,0.002]
[1747054969266,0.19247425,103910.0,103900.0,0.002]
[1747054969488,0.32885217,103910.0,103900.0,0.002]
[1747054970569,0.32885217,103910.0,103900.0,0.006]
[1747054970971,0.32985217,103910.0,103900.0,0.011]
[1747054971171,0.32885217,103910.0,103900.0,0.006]
[1747054971902,0.32985217,103910.0,103900.0,0.006]
[1747054972646,0.32985217,103910.0,103900.0,0.002]
[1747054973006,0.33085217,103910.0,103900.0,0.002]
[1747054983471,0.67085217,103910.0,103900.0,0.002]
[1747054983694,1.09887302,103910.0,103900.0,0.002]
[1747054983899,1.15661302,103910.0,103900.0,0.002]
[1747054984314,1.40098109,103910.0,103900.0,0.002]
[1747054984520,1.15661302,103910.0,103900.0,0.002]
[1747054984938,1.15561302,103910.0,103900.0,0.002]
[1747054985359,1.15961302,103910.0,103900.0,0.002]
[1747054986203,1.21527302,103910.0,103900.0,0.002]
[1747054986419,1.21423302,103910.0,103900.0,0.002]
[1747054986870,1.21723302,103910.0,103900.0,0.003]
[1747054989008,0.3454756,103910.0,103900.0,0.003]
[1747054989266,0.34547588,103910.0,103900.0,0.003]
[1747054994032,0.34517588,103910.0,103900.0,0.003]
[1747054997583,0.34657588,103910.0,103900.0,0.003]
[1747054997802,0.34657588,103910.0,103900.0,0.24861358]
[1747054997803,0.007,103910.0,103900.0,0.24861358]
[1747054998018,0.007,103910.0,103900.0,0.61433757]
[1747054998442,0.02624593,103910.0,103900.0,0.61433775]
[1747054998669,0.2117018,103920.0,103900.0,0.61333775]
[1747054998907,0.22132365,103920.0,103910.0,0.21869777]
[1747054999142,0.21165936,103940.0,103930.0,0.21168074]
[1747054999391,0.23092307,103930.0,103920.0,0.25404865]
[1747054999600,0.23092297,103930.0,103920.0,0.25404875]
[1747054999820,0.23092297,103930.0,103920.0,0.04234773]
[1747055000054,0.20205897,103930.0,103920.0,0.12278773]
[1747055001230,0.20205897,103930.0,103920.0,0.12261788]
[1747055002725,0.20205897,103930.0,103920.0,0.13771788]
[1747055002938,0.20305897,103930.0,103920.0,0.13971788]
[1747055003151,0.20305897,103930.0,103920.0,0.14071788]
[1747055004643,0.20305897,103930.0,103920.0,0.12561788]
[1747055006529,0.20305897,103930.0,103920.0,0.14121788]
[1747055008381,0.20305897,103930.0,103920.0,0.12561788]
[1747055009773,0.21268046,103930.0,103920.0,0.31807361]
[1747055009995,0.21268046,103930.0,103920.0,0.12561788]
[1747055011405,0.21268046,103930.0,103920.0,0.16501773]
[1747055011770,0.21268046,103930.0,103920.0,0.15539495]
[1747055012321,0.21268046,103930.0,103920.0,0.16501773]
[1747055012554,0.21268046,103930.0,103920.0,0.17464042]
[1747055012767,0.21268046,103930.0,103920.0,0.38229615]
[1747055012971,0.22230232,103930.0,103920.0,0.37267346]
[1747055013387,0.001,103930.0,103920.0,2.51278346]
[1747055013604,0.001,103930.0,103920.0,2.54165069]
[1747055014199,0.001,103930.0,103920.0,2.40924369]
[1747055014410,0.001,103930.0,103920.0,2.80924369]
[1747055014618,0.001,103930.0,103920.0,2.73593269]
[1747055014855,0.001,103930.0,103920.0,2.43801569]
[1747055015129,0.001,103930.0,103920.0,2.51636769]
[1747055015935,0.001,103930.0,103920.0,2.46310069]
[1747055016690,0.001,103930.0,103920.0,2.49197169]
[1747055018936,0.001,103930.0,103920.0,2.58782599]
[1747055019928,0.001,103930.0,103920.0,1.28226599]
[1747055020136,0.001,103930.0,103920.0,3.38972199]
[1747055021318,0.001,103930.0,103920.0,3.25507799]
[1747055021506,0.001,103930.0,103920.0,3.19963599]
[1747055023915,0.002,103950.0,103940.0,0.56128038]
[1747055024115,0.00214679,103950.0,103940.0,0.81365826]
[1747055024315,0.01176605,103950.0,103940.0,0.57304036]
[1747055024520,0.03100504,103950.0,103940.0,0.82859658]
[1747055024719,0.22340523,103950.0,103940.0,0.82859658]
[1747055024992,0.23302505,103950.0,103940.0,0.85745826]
[1747055025716,0.24364505,103950.0,103940.0,0.85745845]
[1747055025929,0.25904505,103950.0,103940.0,0.85745845]
[1747055026405,0.25904505,103950.0,103940.0,1.19745845]
[1747055026605,0.24942505,103950.0,103940.0,1.19745845]
[1747055026818,0.27514505,103950.0,103940.0,1.19745845]
[1747055027029,0.27514505,103950.0,103940.0,1.18783798]
[1747055027278,0.26552579,103950.0,103940.0,1.18783807]
[1747055027476,0.26552579,103950.0,103940.0,1.17821742]
[1747055027684,0.26552579,103950.0,103940.0,1.18783798]
[1747055027894,0.26552579,103950.0,103940.0,1.17821742]
[1747055028031,0.26552579,103950.0,103940.0,1.19745863]
[1747055028439,0.26552579,103950.0,103940.0,1.18783807]
[1747055028639,0.26552579,103950.0,103940.0,1.19745863]
[1747055029999,0.2462868,103950.0,103940.0,0.86269788]
[1747055030197,0.2462868,103950.0,103940.0,0.46269788]
[1747055030770,0.2462868,103950.0,103940.0,0.00897788]
[1747055031135,0.3421411,103950.0,103940.0,0.00897788]
[1747055031549,0.23413945,103940.0,103930.0,0.34]
[1747055031927,0.23415907,103930.0,103920.0,0.03875495]
[1747055032340,0.24378065,103930.0,103920.0,0.04837773]
[1747055032546,0.24378065,103930.0,103920.0,0.39800042]
[1747055032754,0.24378065,103930.0,103920.0,0.38837773]
[1747055032935,0.24378065,103930.0,103920.0,0.58083346]
[1747055033137,0.24378065,103930.0,103920.0,0.59045615]
[1747055033516,0.24378065,103930.0,103920.0,0.58083337]
[1747055034017,0.24378065,103930.0,103920.0,0.58083346]
[1747055035011,0.24378065,103930.0,103920.0,0.37875495]
[1747055035346,0.24478065,103930.0,103920.0,0.40100042]
[1747055035642,0.24478065,103930.0,103920.0,0.59345615]
[1747055035787,0.24378065,103930.0,103920.0,0.59245615]
[1747055036196,0.24378065,103930.0,103920.0,0.60207875]
[1747055036646,0.24378065,103930.0,103920.0,1.00307875]
[1747055037244,0.24378065,103930.0,103920.0,0.99345615]
[1747055037447,0.24378065,103930.0,103920.0,1.00307875]
[1747055037653,0.24378065,103930.0,103920.0,0.99345615]
[1747055037958,0.24378065,103930.0,103920.0,1.00307875]
[1747055038208,0.24378065,103930.0,103920.0,0.98383346]
[1747055038418,0.24378065,103930.0,103920.0,0.99345615]
[1747055038840,0.24378065,103930.0,103920.0,0.79137773]
[1747055039050,0.24378065,103930.0,103920.0,0.80100042]
[1747055039269,0.24378065,103930.0,103920.0,0.75197788]
[1747055039488,0.24378065,103930.0,103920.0,0.35197788]
[1747055039684,0.33963495,103930.0,103920.0,0.003]
[1747055040515,0.33963495,103930.0,103920.0,0.002]
[1747055040729,0.24300065,103920.0,103910.0,1.08468446]
[1747055040929,0.26224519,103920.0,103910.0,1.08468446]
[1747055041165,0.26224519,103920.0,103910.0,1.10090334]
[1747055041352,0.26224519,103920.0,103910.0,1.11052668]
[1747055041913,0.243,103920.0,103910.0,1.12014974]
[1747055042119,0.24337953,103930.0,103920.0,0.21170065]
[1747055042323,0.25300102,103930.0,103920.0,0.22067862]
[1747055042555,0.26262269,103930.0,103920.0,0.22067862]
[1747055042744,0.26262269,103930.0,103920.0,0.22067871]
[1747055042945,0.27224455,103930.0,103920.0,0.22267871]
[1747055043150,0.24337953,103930.0,103920.0,0.23230112]
[1747055043345,0.26262269,103930.0,103920.0,0.23030112]
[1747055043548,0.0317,103930.0,103920.0,0.57992344]
[1747055043756,0.0317,103940.0,103930.0,0.22130167]
[1747055044149,0.22715936,103940.0,103930.0,0.22130167]
[1747055044353,0.21753889,103940.0,103930.0,0.56130167]
[1747055044550,0.23677964,103940.0,103930.0,0.56130167]
[1747055044935,0.26220039,103940.0,103930.0,0.55168064]
[1747055045147,0.26520039,103940.0,103930.0,0.56130213]
[1747055045700,0.26520039,103940.0,103930.0,0.57092352]
[1747055045898,0.25557964,103940.0,103930.0,0.57092334]
[1747055046102,0.26520029,103940.0,103930.0,0.57092343]
[1747055046424,0.26520029,103940.0,103930.0,0.56130213]
[1747055046648,0.26520029,103940.0,103930.0,0.58054482]
[1747055047015,0.005,103940.0,103930.0,0.71568306]
[1747055047220,0.00214679,103950.0,103940.0,0.57678038]
[1747055047426,0.00214679,103950.0,103940.0,0.69911826]
[1747055047633,0.00214679,103950.0,103940.0,2.10393926]
[1747055047868,0.00214679,103950.0,103940.0,2.50393926]
[1747055048067,0.00214679,103950.0,103940.0,2.29966626]
[1747055048282,0.00214679,103950.0,103940.0,2.26120326]
[1747055048558,0.00214679,103950.0,103940.0,2.24313326]
[1747055048738,0.00314679,103950.0,103940.0,2.24313326]
[1747055048935,0.00314679,103950.0,103940.0,2.09357326]
[1747055049139,0.00314679,103950.0,103940.0,2.12243826]
[1747055049315,0.00414679,103950.0,103940.0,1.92768026]
[1747055049525,0.00414679,103950.0,103940.0,1.11248326]
[1747055049733,0.01376596,103950.0,103940.0,1.21646926]
[1747055051327,0.01376596,103950.0,103940.0,1.11248326]
[1747055051721,0.01376596,103950.0,103940.0,1.21810526]
[1747055051943,0.00414679,103950.0,103940.0,1.21810526]
[1747055052154,0.00414679,103950.0,103940.0,1.23420526]
[1747055052363,0.00414679,103950.0,103940.0,1.12858326]
[1747055052607,0.00414679,103950.0,103940.0,2.05842926]
[1747055053126,0.00414679,103950.0,103940.0,2.07422926]
[1747055054272,0.00314679,103950.0,103940.0,2.07422926]
[1747055054494,0.00314679,103950.0,103940.0,2.07522926]
[1747055054720,0.00214679,103950.0,103940.0,2.07522926]
[1747055055101,0.00214679,103950.0,103940.0,2.07822926]
[1747055055298,0.00214679,103950.0,103940.0,2.06242926]
[1747055055498,0.01176596,103950.0,103940.0,2.06242926]
[1747055056158,0.00214679,103950.0,103940.0,2.06242926]
[1747055061150,0.01176596,103950.0,103940.0,2.06242926]
[1747055061347,0.00214679,103950.0,103940.0,2.06242926]
[1747055063411,0.00214679,103950.0,103940.0,2.04501626]
[1747055063611,0.00214679,103950.0,103940.0,1.26393426]
[1747055063818,0.01176596,103950.0,103940.0,1.26393426]
[1747055064636,0.01176596,103950.0,103940.0,1.15057426]
[1747055064842,0.02138522,103950.0,103940.0,1.37721426]
[1747055065058,0.00214679,103950.0,103940.0,1.37721426]
[1747055065261,0.01176596,103950.0,103940.0,1.37721426]
[1747055065698,0.02786596,103950.0,103940.0,1.37721426]
[1747055065908,0.00214679,103950.0,103940.0,1.50576856]
[1747055066329,0.00214679,103950.0,103940.0,1.86576856]
[1747055068107,0.00214679,103950.0,103940.0,1.83306856]
[1747055068428,0.00214679,103950.0,103940.0,1.84826856]
[1747055069640,0.00214679,103950.0,103940.0,1.48826856]
[1747055070080,0.00214679,103950.0,103940.0,1.47306856]
[1747055071380,0.00214679,103950.0,103940.0,1.32561756]
[1747055071798,0.00214679,103950.0,103940.0,2.38585756]
[1747055072236,0.00214679,103950.0,103940.0,2.15730256]
[1747055073531,0.01176596,103950.0,103940.0,2.15730256]
[1747055073827,0.00214679,103950.0,103940.0,2.04946156]
[1747055074034,0.00214679,103950.0,103940.0,1.85183456]
[1747055076017,0.00214679,103950.0,103940.0,1.85183456]
[1747055077662,0.00214679,103950.0,103940.0,1.82296956]
[1747055078100,0.00214679,103950.0,103940.0,1.81399168]
[1747055078239,0.01774679,103950.0,103940.0,1.81399168]
[1747055079449,0.00214679,103950.0,103940.0,1.81399168]
[1747055080954,0.2300856,103950.0,103940.0,1.32309368]
[1747055081167,0.24608634,103950.0,103940.0,0.004]
[1747055081384,0.34194064,103950.0,103940.0,0.004]
[1747055087974,0.25270139,103930.0,103920.0,0.45304]
[1747055088187,0.25270139,103930.0,103920.0,0.47164066]
[1747055088561,0.26232325,103930.0,103920.0,0.47164066]
[1747055089528,0.26232325,103930.0,103920.0,0.46201788]
[1747055089736,0.26232325,103930.0,103920.0,0.46501788]
[1747055089966,0.26332325,103930.0,103920.0,0.46901788]
[1747055090208,0.23445833,103930.0,103920.0,1.06147361]
[1747055090442,0.24407972,103930.0,103920.0,1.33203089]
[1747055090631,0.2537013,103930.0,103920.0,1.08071899]
[1747055091412,0.2537013,103930.0,103920.0,1.08071908]
[1747055091613,0.2537013,103930.0,103920.0,1.09034168]
[1747055091793,0.26332297,103930.0,103920.0,1.07109639]
[1747055092085,0.26332297,103930.0,103920.0,1.08071908]
[1747055092465,0.23445833,103930.0,103920.0,0.97730168]
[1747055092671,0.24407972,103930.0,103920.0,1.1096265]
[1747055092870,0.24407972,103930.0,103920.0,1.10962659]
[1747055093088,0.2537013,103930.0,103920.0,1.10962659]
[1747055093289,0.2537013,103930.0,103920.0,1.10000418]
[1747055093900,0.2537013,103930.0,103920.0,1.09038168]
[1747055094110,0.2537013,103930.0,103920.0,1.10000418]
[1747055094929,0.2537013,103930.0,103920.0,1.10962594]
[1747055095134,0.2537013,103930.0,103920.0,1.10962604]
[1747055095337,0.2537013,103930.0,103920.0,1.10962548]
[1747055095750,0.0324,103930.0,103920.0,1.10962548]
[1747055095965,0.02662102,103930.0,103920.0,1.10962548]
[1747055096169,0.03624223,103930.0,103920.0,1.10962548]
[1747055096373,0.06226372,103930.0,103920.0,1.10962548]
[1747055096583,0.04302102,103930.0,103920.0,1.10962548]
[1747055096996,0.05264223,103930.0,103920.0,1.10962548]
[1747055097223,0.04302102,103930.0,103920.0,1.10962548]
[1747055097522,0.05264214,103930.0,103920.0,1.10962548]
[1747055100744,0.06226344,103930.0,103920.0,1.10962548]
[1747055100949,0.05264214,103930.0,103920.0,1.10962548]
[1747055101353,0.26432205,103930.0,103920.0,1.10000335]
[1747055101771,0.06226335,103930.0,103920.0,1.10962548]
[1747055101988,0.26432195,103930.0,103920.0,1.10962548]
[1747055102588,0.27394353,103930.0,103920.0,0.70000344]
[1747055102783,0.27394353,103930.0,103920.0,0.69038112]
[1747055102992,0.27394427,103930.0,103920.0,0.68075862]
[1747055103244,0.2643238,103930.0,103920.0,0.35597788]
[1747055103456,0.24508083,103930.0,103920.0,0.35597788]
[1747055104580,0.24508083,103930.0,103920.0,0.54843361]
[1747055104815,0.24508083,103930.0,103920.0,0.55805621]
[1747055105462,0.24508083,103930.0,103920.0,0.54843361]
[1747055105661,0.24508083,103930.0,103920.0,0.5676789]
[1747055105973,0.24508046,103930.0,103920.0,0.5676789]
[1747055106176,0.24508046,103930.0,103920.0,0.54843361]
[1747055106373,0.24508046,103930.0,103920.0,0.56767899]
[1747055107047,0.24508046,103930.0,103920.0,0.35597788]
[1747055107828,0.24508046,103930.0,103920.0,0.36560066]
[1747055108289,0.24508046,103930.0,103920.0,0.35597788]
[1747055109142,0.24508046,103930.0,103920.0,0.55805639]
[1747055109295,0.24508046,103930.0,103920.0,0.36560066]
[1747055109705,0.24508046,103930.0,103920.0,0.5580563]
[1747055109908,0.24508046,103930.0,103920.0,0.5676789]
[1747055110434,0.24508046,103930.0,103920.0,0.55805639]
[1747055111369,0.24508046,103930.0,103920.0,0.56767908]
[1747055112146,0.24508046,103930.0,103920.0,0.57730168]
[1747055112544,0.25470232,103930.0,103920.0,0.58692418]
[1747055112812,0.24508046,103930.0,103920.0,0.58692418]
[1747055113029,0.25470158,103930.0,103920.0,0.59654613]
[1747055113256,0.0334,103930.0,103920.0,0.59654557]
[1747055113466,0.02024232,103930.0,103920.0,0.59654557]
[1747055113677,0.001,103930.0,103920.0,1.75538857]
[1747055113937,0.001,103930.0,103920.0,2.15538857]
[1747055114152,0.35045953,103950.0,103940.0,0.22128038]
[1747055114153,0.03334679,103950.0,103940.0,0.22128038]
[1747055114372,0.01814679,103950.0,103940.0,0.23025826]
[1747055114606,0.06220504,103950.0,103940.0,0.23025826]
[1747055114787,0.27384496,103950.0,103940.0,0.22063798]
[1747055115053,0.27384487,103950.0,103940.0,0.23025845]
[1747055115275,0.24498653,103950.0,103940.0,0.00897788]
[1747055115670,0.24498653,103950.0,103940.0,0.40897788]
[1747055115897,0.2353668,103950.0,103940.0,0.40897788]
[1747055116355,0.3312211,103950.0,103940.0,0.4]
[1747055116574,0.23233945,103940.0,103930.0,0.34]
[1747055117936,0.2419601,103940.0,103930.0,0.001]
[1747055118133,0.23233945,103940.0,103930.0,0.001]
[1747055119446,0.23233945,103940.0,103930.0,0.004]
[1747055124325,0.24195936,103940.0,103930.0,0.21568046]
[1747055124569,0.25157991,103940.0,103930.0,0.23492315]
[1747055124791,0.25157991,103940.0,103930.0,0.21568046]
[1747055125024,0.25157991,103940.0,103930.0,0.23492333]
[1747055125245,0.25157991,103940.0,103930.0,0.21568064]
[1747055125465,0.26120075,103940.0,103930.0,0.22530213]
[1747055126385,0.26120149,103940.0,103930.0,0.21568083]
[1747055127013,0.25158056,103940.0,103930.0,0.21568083]
[1747055127578,0.25158056,103940.0,103930.0,0.2253025]
[1747055127781,0.25158056,103940.0,103930.0,0.21568083]
[1747055128009,0.26120149,103940.0,103930.0,0.21568083]
[1747055128370,0.26120149,103940.0,103930.0,0.5653025]
[1747055128566,0.26120149,103940.0,103930.0,0.95568083]
[1747055129387,0.26120149,103940.0,103930.0,0.9653025]
[1747055129658,0.26120149,103940.0,103930.0,0.95568083]
[1747055129857,0.26120149,103940.0,103930.0,0.59243721]
[1747055130509,0.26120149,103940.0,103930.0,0.60205907]
[1747055130957,0.26120149,103940.0,103930.0,0.40962186]
[1747055131369,0.25158112,103940.0,103930.0,0.4]
[1747055131577,0.25158112,103940.0,103930.0,0.40962186]
[1747055131789,0.25158112,103940.0,103930.0,0.74962186]
[1747055131985,0.25158112,103940.0,103930.0,0.74]
[1747055132190,0.25158112,103940.0,103930.0,0.74962186]
[1747055132665,0.25158112,103940.0,103930.0,0.94205907]
[1747055132883,0.21165917,103940.0,103930.0,0.96130213]
[1747055133108,0.22127973,103940.0,103930.0,0.95168074]
[1747055133359,0.2466014,103940.0,103930.0,0.74962186]
[1747055133588,0.2466014,103940.0,103930.0,0.94205907]
[1747055134058,0.2466014,103940.0,103930.0,0.74962186]
[1747055134399,0.2466014,103940.0,103930.0,0.74]
[1747055134756,0.2621014,103940.0,103930.0,0.74962186]
[1747055135178,0.2621014,103940.0,103930.0,0.74]
[1747055135391,0.2621014,103940.0,103930.0,0.34]
[1747055135392,0.24286047,103940.0,103930.0,0.34]
[1747055135799,0.2428601,103940.0,103930.0,0.53243721]
[1747055135965,0.2428601,103940.0,103930.0,0.54205907]
[1747055136171,0.23323898,103940.0,103930.0,0.55168083]
[1747055136373,0.21773898,103940.0,103930.0,0.56130232]
[1747055136580,0.2081187,103940.0,103930.0,0.56130232]
[1747055136797,0.22594698,103950.0,103940.0,0.55166028]
[1747055137240,0.2137856,103950.0,103940.0,0.57987909]
[1747055137414,0.23302505,103950.0,103940.0,0.34897788]
[1747055137648,0.24264505,103950.0,103940.0,0.35859872]
[1747055137799,0.24264505,103950.0,103940.0,0.35859881]
[1747055138001,0.25854505,103950.0,103940.0,0.36821965]
[1747055138209,0.24892505,103950.0,103940.0,0.5702591]
[1747055138397,0.25854505,103950.0,103940.0,0.35859881]
[1747055138595,0.24992588,103950.0,103940.0,0.34897788]
[1747055138793,0.22440588,103950.0,103940.0,0.39039881]
[1747055138988,0.02238532,103950.0,103940.0,0.61167919]
[1747055139231,0.01276615,103950.0,103940.0,1.74274719]
[1747055139432,0.20516634,103950.0,103940.0,1.72787019]
[1747055139636,0.25660588,103950.0,103940.0,0.67391835]
[1747055139782,0.25660588,103950.0,103940.0,0.683539]
[1747055139783,0.22440579,103950.0,103940.0,0.683539]
[1747055139983,0.22440579,103950.0,103940.0,0.6835391]
[1747055140831,0.22440579,103950.0,103940.0,0.67391835]
[1747055141033,0.22440579,103950.0,103940.0,1.07391835]
[1747055141233,0.25032579,103950.0,103940.0,0.86225788]
[1747055141467,0.26622579,103950.0,103940.0,0.87187881]
[1747055141924,0.25660579,103950.0,103940.0,0.88149965]
[1747055142338,0.25660579,103950.0,103940.0,1.07391835]
[1747055142535,0.25660579,103950.0,103940.0,1.0835391]
[1747055142750,0.00314679,103950.0,103940.0,1.1140391]
[1747055142913,0.00314679,103950.0,103940.0,3.56552924]
[1747055143121,0.00314679,103950.0,103940.0,2.59394024]
[1747055143395,0.19554698,103950.0,103940.0,2.49071496]
[1747055143561,0.01276615,103950.0,103940.0,1.31975524]
[1747055143790,0.01276605,103950.0,103940.0,1.31975524]
[1747055143924,0.21478569,103950.0,103940.0,1.31013496]
[1747055144127,0.2650257,103950.0,103940.0,1.07665388]
[1747055144340,0.2650257,103950.0,103940.0,1.18735817]
[1747055144537,0.25540625,103950.0,103940.0,0.75859872]
[1747055144768,0.25540625,103950.0,103940.0,0.95101742]
[1747055145010,0.25540625,103950.0,103940.0,0.96063835]
[1747055145613,0.24578671,103950.0,103940.0,0.74897788]
[1747055145836,0.25540607,103950.0,103940.0,0.55101751]
[1747055146041,0.24712297,103930.0,103920.0,0.30573573]
[1747055146240,0.25270232,103930.0,103920.0,0.11328]
[1747055146450,0.24308046,103930.0,103920.0,0.31535851]
[1747055146642,0.24308046,103930.0,103920.0,0.11328]
[1747055147067,0.24308046,103930.0,103900.0,0.402]
[1747055147068,0.01924695,103910.0,103900.0,0.402]
[1747055147304,0.01924695,103910.0,103900.0,0.712]
[1747055147305,0.2431212,103910.0,103900.0,0.712]
[1747055147493,0.23349777,103910.0,103900.0,0.312]
[1747055147812,0.23349777,103910.0,103900.0,0.002]
[1747055148018,0.32935207,103910.0,103900.0,0.002]
[1747055148435,0.32940097,103910.0,103900.0,0.002]
[1747055149489,0.22796991,103910.0,103900.0,0.002]
[1747055149688,0.24316991,103910.0,103900.0,0.007]
[1747055149882,0.24416991,103910.0,103900.0,0.01]
[1747055150083,0.24416991,103910.0,103900.0,0.005]
[1747055150765,0.24416991,103910.0,103900.0,0.008]
[1747055152027,0.22896946,103910.0,103900.0,0.55974158]
[1747055152235,0.23859252,103910.0,103900.0,0.55011732]
[1747055152462,0.24821595,103910.0,103900.0,0.55974168]
[1747055152661,0.0010489,103910.0,103900.0,0.57898993]
[1747055152861,0.01067187,103910.0,103900.0,0.57898993]
[1747055153089,0.21276918,103910.0,103900.0,0.57898993]
[1747055153329,0.0010489,103910.0,103900.0,0.57898993]
[1747055153559,0.01067196,103910.0,103900.0,0.57898993]
[1747055153757,0.20314621,103910.0,103900.0,0.57898993]
[1747055153934,0.21276945,103910.0,103900.0,0.57899002]
[1747055154136,0.20314621,103910.0,103900.0,0.58861401]
[1747055154512,0.01067196,103910.0,103900.0,0.58861401]
[1747055154710,0.01067196,103910.0,103900.0,0.70221401]
[1747055154916,0.21272135,103910.0,103900.0,0.69259002]
[1747055155120,0.21272135,103910.0,103900.0,0.70221401]
[1747055155728,0.21272135,103910.0,103900.0,1.10221401]
[1747055156345,0.01062386,103910.0,103900.0,1.10221401]
[1747055156527,0.20309811,103910.0,103900.0,1.10221401]
[1747055156721,0.21272145,103910.0,103900.0,1.10221401]
[1747055158302,0.21272145,103910.0,103900.0,1.09259002]
[1747055158458,0.01062386,103910.0,103900.0,1.09259002]
[1747055158658,0.22234487,103910.0,103900.0,1.07334177]
[1747055158867,0.22234478,103910.0,103900.0,1.09258993]
[1747055159270,0.02987044,103910.0,103900.0,1.09258993]
[1747055159691,0.02987044,103910.0,103900.0,1.08296594]
[1747055159945,0.0202471,103910.0,103900.0,1.09259002]
[1747055160150,0.0358471,103910.0,103900.0,1.09259002]
[1747055160366,0.0358471,103910.0,103900.0,1.10221438]
[1747055161261,0.23794478,103910.0,103900.0,1.09259039]
[1747055161488,0.0358471,103910.0,103900.0,1.10221438]
[1747055163572,0.24756849,103910.0,103900.0,1.10221456]
[1747055163933,0.24756849,103910.0,103900.0,1.10221401]
[1747055163934,0.0358471,103910.0,103900.0,1.10221401]
[1747055164303,0.23794478,103910.0,103900.0,1.09259002]
[1747055164643,0.07119424,103910.0,103900.0,0.97899002]
[1747055164813,0.26366849,103910.0,103900.0,1.1022941]
[1747055164987,0.2636684,103910.0,103900.0,1.1022941]
[1747055165208,0.27329211,103910.0,103900.0,1.09267002]
[1747055165463,0.2636684,103910.0,103900.0,1.1022941]
[1747055166164,0.2636684,103910.0,103900.0,1.09267002]
[1747055166384,0.2636684,103910.0,103900.0,1.1022941]
[1747055166884,0.0519471,103910.0,103900.0,1.10229364]
[1747055167088,0.24442135,103910.0,103900.0,1.09266965]
[1747055167262,0.25404478,103910.0,103900.0,1.10229364]
[1747055167502,0.2636684,103910.0,103900.0,1.09266965]
[1747055167743,0.2636684,103910.0,103900.0,1.08304557]
[1747055168172,0.2636684,103910.0,103900.0,1.09266965]
[1747055168378,0.0519471,103910.0,103900.0,1.08304557]
[1747055168597,0.0519471,103910.0,103900.0,1.09266956]
[1747055169390,0.26366812,103910.0,103900.0,1.09266956]
[1747055169620,0.06157044,103910.0,103900.0,1.09266956]
[1747055169812,0.0519471,103910.0,103900.0,1.09266956]
[1747055170825,0.0519471,103910.0,103900.0,1.20622956]
[1747055174608,0.26366831,103910.0,103900.0,1.19660557]
[1747055174859,0.25404469,103910.0,103900.0,1.20622956]
[1747055175465,0.25404487,103910.0,103900.0,1.20622965]
[1747055175727,0.24442135,103910.0,103900.0,1.20622956]
[1747055176005,0.0519471,103910.0,103900.0,1.20622956]
[1747055178796,0.0519471,103910.0,103900.0,1.09266956]
[1747055179019,0.25404469,103910.0,103900.0,1.09266956]
[1747055179416,0.04232386,103910.0,103900.0,1.09266956]
[1747055180059,0.0519471,103910.0,103900.0,1.09266956]
[1747055180889,0.24442135,103910.0,103900.0,1.08304557]
[1747055181096,0.24442135,103910.0,103900.0,1.09266956]